Cogmind - Beta 16 @@@ ROGUE MODE // 2026.01.23 @ 20:08:40 Player: vorsii Result: Destroyed by G-34 Mercenary with Small Laser Performance ------------- Evolutions (1) 500 Regions Visited (4) 800 Robots Destroyed (65) 325 Value Destroyed (1936) 1936 Prototype IDs (7) 140 Alien Tech Used (0) 0 Bonus (747) 747 TOTAL SCORE: 4448 Bonus ------- High Alert Combat Kills 209 Follower Combat Kills 338 Entered Garrisons 200 Cogmind --------- Core Integrity 0/400 Matter 29/300 Energy 100/100 System Corruption 19% Temperature Cool (6) Movement Core (700) Ox13 Location -9/Garrison Parts ------- > --- POWER (1) -------- (None) > --- PROPULSION (2) --- (None) > --- UTILITY (4) ------ High-capacity Storage Unit > --- WEAPON (2) ------- (None) > --- INVENTORY (20) --- Heavy Ion Engine Machine Analyzer Signal Interpreter Power Shielding Reactive Plating Relay Coupler [NC] (29) Drone Bay (2/2) Drone Bay (2/2) EM Pulse Cannon EM Pulse Cannon EM Pulse Cannon EM Pulse Cannon Advanced Beam Cannon Minigun Minigun Minigun Rocket Launcher Rocket Launcher Mini Grenade Launcher Mini Grenade Launcher Peak State ------------ > --- POWER ------------ Heavy Ion Engine > --- PROPULSION ------- Armored Wheel > --- UTILITY ---------- High-capacity Storage Unit Advanced Visual Processing Unit Experimental Targeting Computer Core Shielding > --- WEAPON ----------- EM Pulse Cannon Minigun > --- INVENTORY -------- Heavy Ion Engine Machine Analyzer Signal Interpreter ECM Suite Power Shielding Reactive Plating Drone Bay Drone Bay Heavy EM Pulse Gun Heavy EM Pulse Gun Improved EM Shotgun Advanced Beam Cannon Advanced Beam Cannon Minigun Minigun Rocket Launcher Rocket Launcher Rocket Launcher Mini Grenade Launcher Mini Grenade Launcher [Rating: 27] Favorites ----------- Power Heavy Ion Engine Engine Heavy Ion Engine Propulsion Armored Wheel Wheel Armored Wheel Utility Advanced Visual Processing Unit Device ECM Suite Storage High-capacity Storage Unit Processor Advanced Visual Processing Unit Protection Core Shielding Weapon Rocket Launcher Energy Gun EM Shotgun Energy Cannon Advanced Beam Cannon Ballistic Gun Heavy Assault Rifle Ballistic Cannon Improved Light Cannon Launcher Rocket Launcher Build | -11 -10 -9 -9 -9 ------- Run | Yrd Mat Mat Sto Gar Slots Evolved 2 | . . 2 . . Power . | . . . . . Propulsion . | . . . . . Utility 2 | . . 2 . . Weapon . | . . . . . Parts Attached 42 | 5 6 8 20 3 Power 6 | 1 . 2 3 . Engine 6 | 1 . 2 3 . Core . | . . . . . Reactor . | . . . . . Propulsion 7 | 2 2 1 2 . Treads . | . . . . . Leg . | . . . . . Wheel 7 | 2 2 1 2 . Hover . | . . . . . Flight . | . . . . . Utility 9 | 1 1 3 4 . Device 1 | . 1 . . . Storage 2 | 1 . . 1 . Processor 5 | . . 3 2 . Hackware . | . . . . . Protection 1 | . . . 1 . Artifact . | . . . . . Weapon 20 | 1 3 2 11 3 Energy Gun 4 | . 1 . 3 . Energy Cannon 3 | . . . 2 1 Ballistic Gun 7 | 1 2 . 3 1 Ballistic Cannon 1 | . . 1 . . Launcher 5 | . . 1 3 1 Special Weapon . | . . . . . Impact Weapon . | . . . . . Slashing Weapon . | . . . . . Piercing Weapon . | . . . . . Special Melee Weapon . | . . . . . Unidentified Prototypes 7 | . . . 7 . Parts Lost 11 | . . 1 2 8 Power 1 | . . . . 1 Propulsion 3 | . . . 2 1 Utility 4 | . . 1 . 3 Weapon 3 | . . . . 3 Highest Loss Streak 7 | . . 1 1 7 To Critical Strikes . | . . . . . Average Backups 13 | 1 7 7 14 19 Power . | . . . . 1 Propulsion . | . 1 2 . . Utility 3 | . . . 3 6 Weapon 8 | . 4 4 9 11 Tool/Special . | . . . . . Unused Backups 29 | . 2 3 4 20 Power 2 | . 1 . . 1 Propulsion 1 | . . . 1 . Utility 8 | . . . 1 7 Weapon 18 | . 1 3 2 12 Tool/Special . | . . . . . Average Slot Usage (%) 91 | . 94 97 92 83 Engine 11 | . 14 10 11 10 Wheel 16 | . 28 22 16 10 Device 6 | . 11 11 6 . Storage 11 | . 14 11 11 11 Processor 15 | . . 20 15 20 Protection 7 | . . . 9 10 Energy Gun 1 | . 11 1 . . Energy Cannon 1 | . . . 2 2 Ballistic Gun 9 | . 14 5 10 9 Ballistic Cannon 1 | . . 9 . . Launcher 7 | . . 5 8 9 Peak Build Rating 27 | 5 12 17 26 27 Average Rating 19 | 3 10 16 20 24 On Entrance 11 | . 5 12 15 24 Avg Prop Armor Cover (%) . | . . . . . Naked Turns . | . . . . . Heaviest Build 59 | 11 18 21 58 59 Greatest Support 26 | 26 26 24 24 12 Greatest Overweight (x) 18 | 1 . . 4 18 Average Overweight (x) 1 | . . . 2 4 Largest Inventory Capacity 20 | 8 8 8 20 20 Average Capacity 14 | 7 8 8 15 20 Most Carried 20 | 3 8 8 20 20 Average Carried 13 | 1 7 7 14 19 Final Capacity 20 | 8 8 8 20 20 Final Carried 20 | 3 8 8 19 20 Class Distribution -------------------- 100% | Mutant Dominant Class ---------------- Mutant | -10/Materials Mutant | -9/Materials Mutant | -9/Storage Mutant | -9/Garrison Resources | -11 -10 -9 -9 -9 ----------- Run | Yrd Mat Mat Sto Gar Matter Collected 1578 | 186 154 309 856 73 Remotely . | . . . . . Salvage Created 1689 | . 154 297 1058 180 Parts 126 | . 6 31 77 12 Haulers Intercepted 3 | . . . 3 . Recyclers Shooed 3 | . . . 3 . Parts Field Recycled . | . . . . . Retrieved Matter . | . . . . . Parts Self-Destructed . | . . . . . Prevented . | . . . . . Parts Restored . | . . . . . Kills | -11 -10 -9 -9 -9 ------- Run | Yrd Mat Mat Sto Gar Combat Hostiles Destroyed 48 | . 2 11 27 8 Guns 8 | . 1 2 4 1 Cannons 13 | . . 5 6 2 AOE 26 | . 1 4 16 5 Classes Destroyed 14 | . 2 5 7 . Worker 1 | . . . 1 . Builder 3 | . . . 3 . Tunneler 1 | . . . 1 . Hauler 3 | . . . 3 . Recycler 2 | . . 1 1 . Mechanic 1 | . . . 1 . Operator 1 | . . 1 . . Watcher 5 | . 3 1 1 . Swarmer 10 | . . 4 6 . Grunt 24 | . 2 5 12 5 Brawler 2 | . . 1 1 . Duelist 1 | . . . 1 . Protector 1 | . . . 1 . Sentry 10 | . . 1 6 3 Best Kill Streak 10 | . 3 4 10 2 Combat Bots Only 6 | . 2 4 6 2 Max Kills in Single Turn 3 | . 2 2 3 1 Gunslinging . | . . . . . Exploded 2 | . 1 2 2 1 Melee . | . . . . . Uniques/NPCs Destroyed . | . . . . . Combat | -11 -10 -9 -9 -9 -------- Run | Yrd Mat Mat Sto Gar Hostile Shots Fired 207 | . 8 42 61 96 Missed 54 | . 2 12 20 20 Hits 153 | . 6 30 41 76 Melee 16 | . . 4 . 12 Projectile 137 | . 6 26 41 64 Critical Strikes 2 | . . . . 2 Damage Taken 2246 | . 71 419 633 1123 Core 443 | . 38 65 54 286 Absorbed by Shields . | . . . . . Redirected to Shielding 20 | . . . 4 16 Regen/Repaired (Parts) 67 | . . . 67 . Core Remaining (%) 92 | 100 84 . . . Volleys Fired 124 | . 13 30 55 26 Largest 2 | . 2 2 2 2 Hottest 101 | . 68 63 101 96 Shots Fired 230 | . 23 57 103 47 Gun 110 | . 23 10 54 23 Cannon 57 | . . 30 23 4 Launcher 63 | . . 17 26 20 Special . | . . . . . Kinetic 125 | . 13 40 49 23 Thermal 23 | . . . 23 . Explosive 63 | . . 17 26 20 Electromagnetic 19 | . 10 . 5 4 Robot Hit Streak 18 | . 4 6 18 7 Robot Miss Streak 8 | . 8 5 5 2 Penetration Max . | . . . . . Secondary Targets . | . . . . . Shots Hit Robots 123 | . 12 23 55 33 Core Hits 100 | . 8 22 56 14 Critical Kills 1 | . . . 1 . Critical Parts Destroyed . | . . . . . Critical Strikes 1 | . . . 1 . Meltdown 1 | . . . 1 . Melee Attacks . | . . . . . Impact . | . . . . . Slashing . | . . . . . Piercing . | . . . . . Sneak Attacks . | . . . . . Combat Hostiles . | . . . . . Follow-up Attacks . | . . . . . Damage Inflicted 4803 | . 291 926 2546 1040 Guns 902 | . 195 138 358 211 Cannons 765 | . . 271 390 104 Explosions 3136 | . 96 517 1798 725 Melee . | . . . . . Ramming . | . . . . . Kinetic 1001 | . 87 409 294 211 Thermal 511 | . 96 . 390 25 Explosive 3015 | . . 517 1798 700 Electromagnetic 276 | . 108 . 64 104 Impact . | . . . . . Slashing . | . . . . . Piercing . | . . . . . Highest Corruption 19 | . . 1 1 19 Average Corruption 1 | . . 1 1 1 Corruption Purged . | . . . . . Corruption Blocked . | . . . . . Effects 21 | . . 1 11 9 Message Errors 4 | . . . 2 2 Matter Fused 8 | . . . 3 5 Heat Flow Errors 5 | . . 1 3 1 Parts Fused 1 | . . . 1 . Data Loss (minor) 3 | . . . 2 1 Overload Shots . | . . . . . Overflow Damage 19 | . . . 19 . Projectiles 3 | . . . 3 . Explosions 16 | . . . 16 . Melee . | . . . . . Knockbacks 1 | . . 1 . . Impact . | . . . . . Kinetic 1 | . . 1 . . Secondary . | . . . . . Self-Inflicted Damage 187 | . . 41 119 27 Shots 9 | . . 2 6 1 Rammed . | . . . . . Targets Rammed . | . . . . . Kicked . | . . . . . Crushed . | . . . . . Highest Temperature 275 | . 30 275 231 250 Average Temperature 52 | . 10 45 61 59 Received Heat Transfer 678 | . 39 129 144 366 Effects 1 | . . . 1 . Energy Bleed 1 | . . . 1 . Siege Activations . | . . . . . Martial Activations . | . . . . . Shielding Activations . | . . . . . Robots Disrupted . | . . . . . Combat Hostiles . | . . . . . Robots Corrupted . | . . . . . Combat Hostiles . | . . . . . Parts Fried . | . . . . . Impact Corruptions . | . . . . . Robots Melted 1 | . . . 1 . Combat Hostiles 1 | . . . 1 . Parts Melted . | . . . . . Heat Transferred 853 | . 100 . 703 50 Parts Sabotaged . | . . . . . Parts Stolen . | . . . . . Parts Stripped . | . . . . . Power Chain Reactions 3 | . 2 . . 1 Alert | -11 -10 -9 -9 -9 ------- Run | Yrd Mat Mat Sto Gar Maximum Alert Level 3 | . . . 3 3 Low Security (%) 37 | 100 100 100 18 . Level 1 5 | . . . 11 . Level 2 17 | . . . 13 46 Level 3 38 | . . . 55 53 Level 4 . | . . . . . Level 5 . | . . . . . High Security . | . . . . . Max Security . | . . . . . Peak Influence 914 | . 54 173 914 811 Initial 498 | . . 14 66 498 Average 454 | . 5 69 589 688 Influence Increases 2276 | . 90 400 1453 333 Destroy 0b10 Robot/C 1220 | . 40 220 800 160 Destroy 0b10 Robot/NC 95 | . 15 15 65 . Destroy Leader 248 | . 16 42 190 . Allied During Kill 132 | . . . 132 . Successful Hack 58 | . 9 16 33 . Disable Machine 75 | . . 30 45 . Anti-Garrison Action 50 | . . . . 50 Destroy Structure 353 | . 10 77 188 78 Lose Combat Pursuer 45 | . . . . 45 Influence Decreases 1525 | . 56 276 844 349 Entered New Map 381 | . . 20 92 269 Time Decay 844 | . 56 246 542 . Lost Part 110 | . . 10 20 80 Lost Ally 40 | . . . 40 . Purge Threat 150 | . . . 150 . Squads Dispatched 9 | . . . 9 . Investigation 3 | . . . 3 . Extermination . | . . . . . Reinforcement 1 | . . . 1 . Assault 2 | . . . 2 . Garrison 3 | . . . 3 . Intercept . | . . . . . Searches Triggered . | . . . . . Construction Impeded 1 | . . . 1 . Haulers Reinforced . | . . . . . Active Scanning Responses . | . . . . . Cargo Convoy Interrupts . | . . . . . Stealth | -11 -10 -9 -9 -9 --------- Run | Yrd Mat Mat Sto Gar Distress Signals 2 | . . 1 1 . Communications Jammed . | . . . . . Distress Signals . | . . . . . Times Spotted 81 | . 8 18 44 11 Peak Tracking Total 8 | . 2 3 8 5 Tactical Retreats 6 | . . 2 2 2 ECM-based Alert Blocks 8 | . . 4 4 . Traps | -11 -10 -9 -9 -9 ------- Run | Yrd Mat Mat Sto Gar Traps Triggered 6 | . . 1 3 2 Indirectly . | . . . . . Trap Hack Attempts . | . . . . . Triggered . | . . . . . Disarmed 5 | . 5 . . . Reprogrammed 5 | . . 5 . . Reused . | . . . . . Traps Extracted . | . . . . . Installed . | . . . . . Triggered . | . . . . . Machines | -11 -10 -9 -9 -9 ---------- Run | Yrd Mat Mat Sto Gar Machines Disabled 6 | . . 2 3 1 Max in Single Turn 1 | . . 1 1 1 Garrison Relay 1 | . . . . 1 Machines Repaired . | . . . . . Machines Dismantled . | . . . . . Machines Sabotaged . | . . . . . Overloaded Fab Kills . | . . . . . Hacking | -11 -10 -9 -9 -9 --------- Run | Yrd Mat Mat Sto Gar Machines Accessed 20 | . 4 5 11 . Terminals 17 | . 4 4 9 . Fabricators . | . . . . . Repair Stations 1 | . . . 1 . Recycling Units . | . . . . . Scanalyzers 1 | . . 1 . . Garrison Access 1 | . . . 1 . Total Hacks 48 | . 13 12 23 . Successful 27 | . 6 7 14 . Failed 20 | . 7 4 9 . Catastrophic 1 | . . . 1 . Database Lockouts 1 | . . 1 . . Manual 2 | . . . 2 . Terminals 40 | . 13 10 17 . Fabricators . | . . . . . Repair Stations 5 | . . . 5 . Recycling Units . | . . . . . Scanalyzers 2 | . . 2 . . Garrison Access 1 | . . . 1 . Terminal Hacks 22 | . 6 6 10 . Record 2 | . 1 1 . . Open Door 4 | . . . 4 . Branch Access Points 1 | . . 1 . . Unreport Threat 1 | . . . 1 . Locate Traps 3 | . 2 1 . . Disarm Traps 1 | . 1 . . . Reprogram Traps 1 | . . 1 . . Surveillance Status 1 | . . . 1 . Investigation Status 1 | . . 1 . . Recall Reinforcements 1 | . . . 1 . Zone Layout 6 | . 2 1 3 . Fabricator Hacks . | . . . . . Repair Station Hacks 3 | . . . 3 . Scan Component 2 | . . . 2 . Repair 1 | . . . 1 . Recycling Unit Hacks . | . . . . . Scanalyzer 1 | . . 1 . . Retrieve Study 1 | . . 1 . . Garrison Access Hacks 1 | . . . 1 . Unlock Access 1 | . . . 1 . Unauthorized Hacks . | . . . . . Terminals . | . . . . . Fabricators . | . . . . . Repair Stations . | . . . . . Recycling Units . | . . . . . Scanalyzers . | . . . . . Garrison Access . | . . . . . Data Cores Recovered 1 | . . 1 . . Used . | . . . . . Hacking Detections 13 | . 3 4 6 . Full Trace Events 3 | . . 1 2 . Feedback Events 1 | . . 1 . . Corruption 1 | . . 1 . . Feedback Blocked . | . . . . . Robot Schematics Acquired . | . . . . . Robots Built . | . . . . . Authchips . | . . . . . Time . | . . . . . Total Robot Build Rating . | . . . . . Part Schematics Acquired . | . . . . . Parts Built . | . . . . . Authchips . | . . . . . Time . | . . . . . Total Part Build Rating . | . . . . . Part Studies Acquired 1 | . . 1 . . Parts Repaired 1 | . . . 1 . Time 32 | . . . 32 . Parts Recycled . | . . . . . Recycled Matter . | . . . . . Retrieved Matter . | . . . . . Retrieved Components . | . . . . . Parts Scanalyzed . | . . . . . Part Schematics Acquired . | . . . . . Parts Damaged . | . . . . . Bothacking | -11 -10 -9 -9 -9 ------------ Run | Yrd Mat Mat Sto Gar Used RIF Installer . | . . . . . Robots Hacked . | . . . . . Non-combat . | . . . . . Combat . | . . . . . Robot Hacks Applied . | . . . . . Relay Couplers Released 4 | . . . . 4 Machine Destruction 4 | . . . . 4 Fabnet Peak Effective % . | . . . . . Robots Rewired . | . . . . . Allies Hacked . | . . . . . Hacks Repelled . | . . . . . Allies | -11 -10 -9 -9 -9 -------- Run | Yrd Mat Mat Sto Gar Total Allies 2 | . . . 2 . Largest Group 2 | . . . 2 . Highest-Rated Group 62 | . . . 62 . Highest-Rated Ally 31 | . . . 31 . Total Orders . | . . . . . Ally Attacks 65 | . . . 65 . Total Damage 912 | . . . 912 . Kills 15 | . . . 15 . Allies Corrupted . | . . . . . Allies Melted . | . . . . . Intel | -11 -10 -9 -9 -9 ------- Run | Yrd Mat Mat Sto Gar Active Infowar (turns) 3090 | . 275 564 1544 707 Optics 2815 | . . 564 1544 707 ECM 1750 | . 275 564 911 . Robot Analysis Total . | . . . . . Derelict Logs Recovered . | . . . . . Drone Launches . | . . . . . Drone Recoveries . | . . . . . Exploration | -11 -10 -9 -9 -9 ------------- Run | Yrd Mat Mat Sto Gar Turns Passed 3249 | 38 340 564 1544 763 Spaces Moved 2286 | 30 314 489 1043 410 Core 11 | 4 . . . 7 Treads . | . . . . . Legs . | . . . . . Wheels 2275 | 26 314 489 1043 403 Hover . | . . . . . Flight . | . . . . . Fastest Speed 50 | 50 85 90 90 150 Average Speed 116 | 84 89 90 119 162 Slowest Speed 950 | 95 90 90 150 950 Overloaded Moves . | . . . . . Propulsion Burnouts . | . . . . . Robots Hopped . | . . . . . Potential Cave-ins 7 | . . 5 2 . Cave-ins Triggered . | . . . . . Exploration Rate (%) 39 | 3 43 38 85 27 Regions Visited 4 Branch Regions 1 Pre-discovered Areas . | . . . . . Known Exits Taken 2 | . . 1 1 . Unknown Exits Taken 2 | 1 1 . . . Scrap Searched . | . . . . . Spaces Dug 128 | . . 51 50 27 Terrain Destroyed 459 | . 10 113 234 102 Melee . | . . . . . Projectile 3 | . . 3 . . AOE 456 | . 10 110 234 102 Terrain Rammed . | . . . . . Walls Destroyed . | . . . . . Machines Disabled . | . . . . . Actions | -11 -10 -9 -9 -9 --------- Run | Yrd Mat Mat Sto Gar Total 2642 | 42 348 556 1230 466 Wait 66 | . 1 8 57 . Move 2282 | 29 313 488 1042 410 Hop . | . . . . . Pick Up 67 | 8 10 11 28 10 Fast Attach 9 | . 1 2 6 . Attach 11 | 5 1 2 2 1 Detach . | . . . . . Swap 34 | . 4 6 21 3 Drop 41 | . 5 9 19 8 Fire 124 | . 13 30 55 26 Melee . | . . . . . Ram . | . . . . . Kick . | . . . . . Crush . | . . . . . Escape Stasis 8 | . . . . 8 Rewire . | . . . . . Trap . | . . . . . Miscellaneous . | . . . . . Route ------- -11/Scrapyard -10/Materials (discovered 3 exits: *Mat / [*Min x2]) -9/Materials (discovered 4 exits: [*Mat] / *Min x2 / *Sto) -9/Storage (discovered 3 exits: [*Mat] / [Rec] / Gar) -9/Garrison History --------- Turn | Location | Event 15 | -11/Scrapyard | Discovered new exit (range 16) 39 | -11/Scrapyard | Entered Materials 124 | -10/Materials | Discovered new exit (range 8) 129 | -10/Materials | Discovered new exit (range 15) 194 | -10/Materials | Discovered new exit (range 4) 314 | -10/Materials | Build established: Mutant 379 | -10/Materials | Entered another Materials area 379 | -9/Materials | Evolved 2 slots: Utility x2 492 | -9/Materials | Central database locked down 606 | -9/Materials | Identified exit to Mines 606 | -9/Materials | Identified exit to Storage 840 | -9/Materials | Discovered new exit (range 19) 943 | -9/Materials | Entered Storage 1192 | -9/Storage | Met a pair of Derelict thieves 1282 | -9/Storage | Discovered new exit (range 7) 1386 | -9/Storage | Garrison activated, responded to threat 1454 | -9/Storage | Discovered new exit (range 12) 1574 | -9/Storage | Found Prototype Processor 1854 | -9/Storage | Identified Exp. Targeting Computer 2130 | -9/Storage | Identified exit to Garrison 2380 | -9/Storage | Repaired Arm. Wheel 2487 | -9/Storage | Entered Garrison 2765 | -9/Garrison | Triggered checkpoint 2868 | -9/Garrison | Garrison Relay disabled 3085 | -9/Garrison | Triggered checkpoint 3212 | -9/Garrison | Core integrity fell below 50% 3229 | -9/Garrison | System corruption reached 10% 3234 | -9/Garrison | Core integrity fell below 20% 3250 | -9/Garrison | Destroyed by G-34 Mercenary with Small Laser Last Messages --------------- 03194_ Adv. Visual Processing Unit destroyed. 03194_ System corrupted by crushing effect (+3). 03194_ Knocked back. 03208_ Core Shielding destroyed. 03208_ System corrupted by crushing effect (+5). 03217_ The unstable cave ceiling collapses. 03217_ Knocked back. 03224_ System corrupted: Component data lost. 03228_ The unstable cave ceiling collapses. 03228_ Hvy. Ion Engine destroyed. 03228_ System corrupted by crushing effect (+5). 03228_ Knocked back. [Achievement: System Compromised] 03229_ Rocket Launcher destroyed. 03234_ Exp. Targeting Computer destroyed. 03234_ System corrupted by crushing effect (+5). 03234_ Knocked back. 03242_ System corrupted: Matter fused (-9). 03243_ Knocked back. 03244_ Minigun destroyed. Map ----- +----------------------------------------------------+ | ?????????????????????????????????????????????????? | | ?????????????????????????????????????????????????? | | ?????????????????????????????????????????????????? | | ?????????????????????????????????????????????????? | | ?????????????????????????????????????????????????? | | ?????????????????????????????????????????????????? | | ?????????????????????????????????????????????????? | | ?????????????????????????????????????????????????? | | ?????????????????????????????????????????????????? | | ?????????????????????????????????????????????????? | | ???????????????????????? ??????????????????????? | | ???????????????????????? ??????????????????????? | | ???????????????????????? ??????????????????????? | | ???????????????????????# #?????????????????????? | | ???????????????????????# #?????????????????????? | | ???????????????????????# #?????????????????????? | | ???????????????????????# #?????????????????????? | | ???????????????????????# #?????????????????????? | | ????????????######"""?## #?????????????????????? | | ????????????# ? ###???????????????????? | | ??????????? ???????????????????? | | ???????????? g ????????????????????? | | ????????????# ?# ## ?????????????????????? | | ????????????# ## ###???????????????????? | | ????????????" % #???????????????????? | | ????????????" @ #???????????????????? | | ????????????" b ####????????????????? | | ????????????" #?????????##?????? | | ????????????# ## ## #### #?????????# ?????? | | ????????????# ## ## #??# #???????###+###??? | | ????????????# g #### #######?#!! !!#??? | | ????????????# g # #?#! !!#??? | | ????????????# ########## ### #### | | ????????????## ## ## #????????# +^ [+[ | | ?????????????T ??# ?# #????????# ### ### | | ?????????????????####??# #????????# #?# [ [ #?# | | ???????????????????????# #????????# #?# [ !]#?# | | ???????????????????????# #????????# #?###+###?# | | ???????????????????????# ########## #???# ????# | | ???????????????????????# # #???##????# | | ???????????????????????# ###### ### #???????### | | ???????????????????????# #????# ### #???????# | | ???????????????????????# #????# # # #???????# # | | ???????????????????????# ###### # ########## = | | ???????????????????????# | | ???????????????????????# =!= | | ???????????????????????# * = | | ???????????????????????########## #" ########## | | ????????????????????????????????# ### ##?????# | | ????????????????????????????????# #?# #?????## | +----------------------------------------------------+ Best States ------------- Heat Dissipation 28 Energy Generation 14 Energy Capacity 280 Matter Stores 300 Matter Capacity 300 Sight Range 20 Terrain Scan Density 10 ECM Strength 1 Core Shielding 20 Evasion (%) 44 Targeting Accuracy 12 Item Schematics ----------------- None Robot Schematics ------------------ None Fabricated ------------ Nothing Repaired ---------- Arm. Wheel | 33% | -9/Storage Studied --------- Imp. Light Cannon | -9/Materials | Hacked Alien Tech Used ----------------- None Achievements -------------- GoHome() Party Time System Compromised Challenges ------------ None Game ------ Seed AntisysAssemblyArmor Manual? 0 Play Time 01:02:55 Cumulative 10.7 hours Start 2026.01.23 @ 18:25:43 End 2026.01.23 @ 20:08:40 Sessions 1 Manual Loads 0 Difficulty Rogue Special Mode None Game No. 15 Rogue 15 Adventurer 0 Explorer 0 Win Type - Total 0 Types 0/0/0/0/0/0/0/0/0/0 Lore% 14 Gallery% 10 Achievement% 12 Wizard Run 0 Options --------- Layout 0 ASCII 0 Keyboard 0 Movement Mouse Keybinds 0 Fullscreen 1 Font 36/Smallcaps Map View 76x50 Zoom Use 0% Tactical HUD 1 Map Filters NONE Filters NONE Steam 1 RUN: a65e8b5a-83ed-43ef-83e9-c78ca2e973d6